fUST/lending_fUST_20240924
["ID","MTS","AMOUNT","RATE_DAILY","PERIOD"]
[339054311,1727182246584,-2256.400956,0.00030126,7]
[339054312,1727182246593,-181.2,0.00030126,7]
[339054313,1727182246602,-181.2,0.00030126,7]
[339054314,1727182246612,-181.2,0.00030126,7]
[339054315,1727182246623,-181.2,0.00030126,7]
[339054316,1727182246634,-500.0,0.00030132,2]
[339054317,1727182246645,-310.0,0.00030136,30]
[339054318,1727182246656,-310.0,0.00030136,30]
[339054319,1727182246666,-180.143587,0.00030136,30]
[339054320,1727182246675,-151.0,0.00030136,7]
[339054321,1727182246684,-151.0,0.00030136,7]
[339054322,1727182246693,-151.0,0.00030136,7]
[339054323,1727182246702,-151.0,0.00030136,7]
[339054324,1727182246711,-151.0,0.00030136,7]
[339054325,1727182246720,-278.372298,0.00030136,7]
[339054326,1727182246730,-181.161504,0.00030136,7]
[339054327,1727182246739,-181.161504,0.00030136,7]
[339054328,1727182246748,-181.161504,0.00030136,7]
[339054329,1727182246758,-181.161504,0.00030136,7]
[339054330,1727182246769,-181.161504,0.00030136,7]
[339054331,1727182246779,-181.161504,0.00030136,7]
[339054332,1727182246788,-274.842574,0.00030136,7]
[339054333,1727182246799,-274.842574,0.00030136,7]
[339054334,1727182246810,-274.842574,0.00030136,7]
[339054335,1727182246821,-274.842574,0.00030136,7]
[339054336,1727182246831,-274.842574,0.00030136,7]
[339054337,1727182246841,-274.842574,0.00030136,7]
[339054338,1727182246851,-274.842574,0.00030136,7]
[339054339,1727182246863,-274.842574,0.00030136,7]
[339054340,1727182246872,-274.842574,0.00030136,7]
[339054341,1727182246881,-274.842574,0.00030136,7]
[339054342,1727182246891,-274.842574,0.00030136,7]
[339054343,1727182246901,-274.842574,0.00030136,7]
[339054344,1727182246911,-151.0,0.00030136,7]
[339054345,1727182246921,-151.0,0.00030136,7]
[339054346,1727182246931,-151.0,0.00030136,7]
[339054347,1727182246940,-151.0,0.00030136,7]
[339054348,1727182246950,-151.0,0.00030136,7]
[339054349,1727182246959,-151.0,0.00030136,7]
[339054350,1727182246969,-151.0,0.00030136,7]
[339054351,1727182246978,-151.0,0.00030136,7]
[339054352,1727182246988,-151.0,0.00030136,7]
[339054353,1727182246998,-251.456066,0.00030136,7]
[339054354,1727182247007,-151.0,0.00030136,7]
[339054355,1727182247017,-151.0,0.00030136,7]
[339054356,1727182247028,-151.0,0.00030136,7]
[339054357,1727182247039,-151.0,0.00030136,7]
[339054358,1727182247049,-151.0,0.00030136,7]
[339054359,1727182247060,-151.0,0.00030136,7]
[339054360,1727182247070,-151.0,0.00030136,7]
[339054361,1727182247079,-151.0,0.00030136,7]
[339054362,1727182247088,-151.0,0.00030136,7]
[339054363,1727182247098,-151.0,0.00030136,7]
[339054364,1727182247107,-151.0,0.00030136,7]
[339054365,1727182247118,-165.6675,0.00030136,7]
[339054366,1727182247127,-151.0,0.00030136,7]
[339054367,1727182247138,-151.0,0.00030136,7]
[339054368,1727182247149,-151.0,0.00030136,7]
[339054369,1727182247159,-151.0,0.00030136,7]
[339054370,1727182247168,-151.0,0.00030136,7]
[339054371,1727182247179,-151.0,0.00030136,7]
[339054372,1727182247188,-151.0,0.00030136,7]
[339054373,1727182247198,-151.0,0.00030136,7]
[339054374,1727182247207,-151.0,0.00030136,7]
[339054375,1727182247217,-151.0,0.00030136,7]
[339054376,1727182247227,-151.0,0.00030136,7]
[339054377,1727182247236,-151.0,0.00030136,7]
[339054378,1727182247245,-151.0,0.00030136,7]
[339054379,1727182247254,-151.0,0.00030136,7]
[339054380,1727182247264,-151.0,0.00030136,7]
[339054381,1727182247273,-151.0,0.00030136,7]
[339054382,1727182247282,-151.0,0.00030136,7]
[339054383,1727182247291,-151.0,0.00030136,7]
[339054384,1727182247300,-151.0,0.00030136,7]
[339054385,1727182247310,-151.0,0.00030136,7]
[339054386,1727182247320,-151.0,0.00030136,7]
[339054387,1727182247329,-151.0,0.00030136,7]
[339054388,1727182247339,-151.0,0.00030136,7]
[339054389,1727182247347,-151.0,0.00030136,7]
[339054390,1727182247357,-151.0,0.00030136,7]
[339054391,1727182247368,-151.0,0.00030136,7]
[339054392,1727182247377,-151.0,0.00030136,7]
[339054393,1727182247385,-151.0,0.00030136,7]
[339054394,1727182247395,-151.0,0.00030136,7]
[339054395,1727182247404,-191.454954,0.00030136,7]
[339054396,1727182247413,-501.89863553,0.00030136,14]
[339054397,1727182247424,-151.0,0.00030136,7]
[339054398,1727182247436,-151.0,0.00030136,7]
[339054399,1727182247448,-151.0,0.00030136,7]
[339054400,1727182247458,-151.831294,0.00030136,7]
[339054401,1727182247468,-151.0,0.00030136,7]
[339054402,1727182247477,-151.0,0.00030136,7]
[339054403,1727182247486,-151.0,0.00030136,7]
[339054404,1727182247495,-151.0,0.00030136,7]
[339054405,1727182247504,-151.0,0.00030136,7]
[339054406,1727182247514,-156.922161,0.00030136,7]
[339054407,1727182247523,-500.0,0.00030136,14]
[339054408,1727182247532,-500.0,0.00030136,14]
[339054409,1727182247541,-500.0,0.00030136,14]
[339054410,1727182247550,-562.62190692,0.00030136,14]
[339054411,1727182247560,-500.0,0.00030136,14]
[339054412,1727182247569,-500.0,0.00030136,14]
[339054413,1727182247578,-500.0,0.00030136,14]
[339054414,1727182247587,-503.95090078,0.00030136,14]
[339054415,1727182247597,-500.0,0.00030136,14]
[339054416,1727182247606,-500.0,0.00030136,14]
[339054417,1727182247617,-519.74167236,0.00030136,14]
[339054418,1727182247627,-500.0,0.00030136,14]
[339054419,1727182247638,-500.0,0.00030136,14]
[339054420,1727182247648,-535.45385926,0.00030136,14]
[339054421,1727182247659,-500.0,0.00030136,14]
[339054422,1727182247668,-500.0,0.00030136,14]
[339054423,1727182247678,-500.0,0.00030136,14]
[339054424,1727182247687,-295.636234,0.00030136,7]
[339054425,1727182247696,-295.636234,0.00030136,7]
[339054426,1727182247706,-295.636234,0.00030136,7]
[339054427,1727182247715,-295.636234,0.00030136,7]
[339054428,1727182247724,-295.636234,0.00030136,7]
[339054429,1727182247733,-510.59216753,0.00030136,14]
[339054430,1727182247743,-295.636234,0.00030136,7]
[339054431,1727182247753,-295.636234,0.00030136,7]
[339054432,1727182247764,-295.636234,0.00030136,7]
[339054433,1727182247773,-295.636234,0.00030136,7]
[339054434,1727182247782,-295.636234,0.00030136,7]
[339054435,1727182247792,-295.636234,0.00030136,7]
[339054436,1727182247801,-295.636234,0.00030136,7]
[339054437,1727182247811,-295.636234,0.00030136,7]
[339054438,1727182247821,-295.636234,0.00030136,7]
[339054439,1727182247830,-500.0,0.00030136,14]
[339054440,1727182247840,-295.636234,0.00030136,7]
[339054441,1727182247988,-295.636234,0.00030136,7]
[339054442,1727182247998,-295.636234,0.00030136,7]
[339054443,1727182248007,-295.636237,0.00030136,7]
[339054444,1727182248017,-500.0,0.00030136,14]
[339054445,1727182248027,-500.0,0.00030136,14]
[339054446,1727182248037,-500.0,0.00030136,14]
[339054447,1727182248047,-296.41671393,0.00030136,14]
[339054472,1727182958536,10000.0,0.0002,2]
[339054473,1727182971401,2450.0,0.0002,2]
[339054483,1727183246184,-746.0386585,0.00021199,2]
[339054484,1727183246205,-200.0,0.00021206,2]
[339054485,1727183246228,-182.0366613,0.00021206,2]
[339054486,1727183246250,-168.118437,0.00021918,2]
[339054487,1727183246273,-165.701834,0.00022065,2]
[339054488,1727183246296,-393.189284,0.00022163,2]
[339054489,1727183246319,-165.701834,0.0002218,2]
[339054490,1727183246342,-300.0,0.00022209,2]
[339054491,1727183246364,-300.0,0.00022209,2]
[339054492,1727183246387,-500.0,0.0002221,30]
[339054493,1727183246409,-500.0,0.0002221,30]
[339054494,1727183246430,-500.0,0.0002221,30]
[339054495,1727183246452,-291.84834822,0.0002221,30]
[339054499,1727183354389,-233.66554,0.000215,2]
[339054500,1727183354411,-360.22816624,0.0002208,2]
[339054501,1727183354434,-300.0,0.00022209,2]
[339054502,1727183354455,-300.0,0.00022209,2]
[339054503,1727183354475,-97.56085866,0.0002221,30]
[339054504,1727183359224,-115.28715791,0.0002221,30]
[339054505,1727183359247,-327.53140531,0.0002221,30]
[339054506,1727183370107,-172.46859469,0.0002221,30]
[339054507,1727183370133,-500.0,0.0002221,30]
[339054508,1727183370155,-923.50062393,0.0002221,30]
[339054509,1727183370181,-500.0,0.0002221,30]
[339054510,1727183370209,-500.0,0.0002221,30]
[339054511,1727183370232,-500.0,0.0002221,30]
[339054512,1727183370255,-500.0,0.0002221,30]
[339054513,1727183370278,-500.0,0.0002221,30]
[339054514,1727183370300,-501.90053448,0.0002221,30]
[339054515,1727183370321,-500.0,0.0002221,30]
[339054516,1727183370343,-500.0,0.0002221,30]
[339054517,1727183370366,-900.0,0.0002221,30]
[339054518,1727183370387,-508.26061031,0.0002221,30]
[339054519,1727183370408,-500.0,0.0002221,30]
[339054520,1727183370430,-500.0,0.0002221,30]
[339054521,1727183370460,-500.0,0.0002221,30]
[339054522,1727183370482,-500.0,0.0002221,30]
[339054523,1727183370504,-500.0,0.0002221,30]
[339054524,1727183370527,-500.0,0.0002221,30]
[339054525,1727183370552,-500.0,0.0002221,30]
[339054526,1727183370572,-500.0,0.0002221,30]
[339054527,1727183370593,-500.0,0.0002221,30]
[339054528,1727183370615,-500.0,0.0002221,30]
[339054529,1727183370638,-500.0,0.0002221,30]
[339054530,1727183370660,-500.0,0.0002221,30]
[339054531,1727183370681,-500.0,0.0002221,30]
[339054532,1727183370711,-500.0,0.0002221,30]
[339054533,1727183370731,-500.0,0.0002221,30]
[339054534,1727183370751,-500.0,0.0002221,30]
[339054535,1727183370773,-501.09089486,0.0002221,30]
[339054536,1727183370794,-593.45123994,0.0002221,30]
[339054537,1727183370816,-243.53914871,0.00022216,2]
[339054538,1727183372106,-367.90435843,0.00022216,2]
[339054539,1727183372132,-500.0,0.00022216,2]
[339054540,1727183372161,-500.0,0.00022216,2]
[339054541,1727183372185,-500.0,0.00022216,2]
[339054542,1727183372210,-630.09244218,0.00022216,2]
[339054543,1727183372234,-500.0,0.00022216,2]
[339054544,1727183372256,-24900.0,0.00022217,2]
[339054545,1727183372282,-165.701834,0.00022295,2]
[339054546,1727183372305,-287.105455,0.00022301,2]
[339054547,1727183372329,-172.147308,0.00022354,2]
[339054548,1727183372352,-165.701834,0.0002241,2]
[339054549,1727183372375,-547.9692779,0.00022512,2]
[339054550,1727183372400,-165.701834,0.00022525,2]
[339054551,1727183372424,-165.701834,0.0002264,2]
[339054552,1727183372449,-165.701834,0.00022755,2]
[339054553,1727183372472,-165.701834,0.0002287,2]
[339054554,1727183372497,-165.701834,0.00022985,2]
[339054555,1727183372521,-287.105455,0.00022986,2]
[339054556,1727183372547,-200.0,0.00023,2]
[339054557,1727183372570,-165.701834,0.000231,2]
[339054558,1727183372593,-165.701834,0.00023215,2]
[339054559,1727183372616,-226.16240326,0.00023671,2]
[339054560,1727183374108,-60.94305174,0.00023671,2]
[339054607,1727183432225,-477.46748131,0.00024075,2]
[339054660,1727183438614,-22.53251869,0.00024075,2]
[339054661,1727183438626,-500.0,0.00024475,2]
[339054662,1727183438635,-500.0,0.00024475,2]
[339054663,1727183438645,-500.0,0.00024475,2]
[339054664,1727183438654,-327.40521494,0.00024475,2]
[339054665,1727183438664,-168.118437,0.00024482,2]
[339054666,1727183438673,-572.38718634,0.00024623,2]
[339054667,1727183438682,-500.0,0.00024667,2]
[339054668,1727183438692,-500.0,0.00024667,2]
[339054669,1727183438701,-331.37458169,0.00024825,2]
[339054670,1727183438854,-4088.42011304,0.000249,2]
[339054671,1727183438863,-300.0,0.00024998,2]
[339054672,1727183438873,-292.23249358,0.00024999,2]
[339054673,1727183438882,-500.0,0.00025,30]
[339054674,1727183438892,-500.0,0.00025,30]
[339054675,1727183438901,-500.0,0.00025,30]
[339054676,1727183438911,-500.0,0.00025,30]
[339054677,1727183438920,-500.0,0.00025,30]
[339054678,1727183438935,-500.0,0.00025,30]
[339054679,1727183438944,-500.0,0.00025,30]
[339054680,1727183438954,-500.0,0.00025,30]
[339054681,1727183438963,-500.0,0.00025,30]
[339054682,1727183438972,-500.0,0.00025,30]
[339054683,1727183438982,-500.0,0.00025,30]
[339054684,1727183438992,-500.0,0.00025,30]
[339054685,1727183439002,-504.68494877,0.00025,30]
[339054686,1727183439011,-500.0,0.00025,30]
[339054687,1727183439020,-500.0,0.00025,30]
[339054688,1727183439030,-500.0,0.00025,30]
[339054689,1727183439039,-500.0,0.00025,30]
[339054690,1727183439049,-502.68246318,0.00025,30]
[339054691,1727183439059,-500.0,0.00025,30]
[339054692,1727183439068,-276.7152443,0.00025,30]
[339054693,1727183439078,-500.0,0.00025,30]
[339054694,1727183439088,-499.3,0.00025,30]
[339054695,1727183439097,-546.22848721,0.00025,30]
[339054696,1727183439107,-500.0,0.00025,30]
[339054697,1727183439117,-558.78265467,0.00025,30]
[339054698,1727183439126,-502.5224074,0.00025,30]
[339054699,1727183439137,-500.0,0.00025,30]
[339054700,1727183439146,-500.0,0.00025,30]
[339054701,1727183439155,-939.38006789,0.00025,30]
[339054702,1727183439166,-503.03129971,0.00025,30]
[339054703,1727183439175,-500.0,0.00025,30]
[339054704,1727183439184,-506.56802547,0.00025,30]
[339054705,1727183439194,-154.74467129,0.00025,30]
[339054706,1727183439203,-500.0,0.00025,30]
[339054707,1727183439213,-500.0,0.00025,30]
[339054708,1727183439223,-500.0,0.00025,30]
[339054709,1727183439234,-500.0,0.00025,30]
[339054710,1727183439244,-500.0,0.00025,30]
[339054711,1727183439254,-500.0,0.00025,30]
[339054712,1727183439263,-500.0,0.00025,30]
[339054713,1727183439273,-500.0,0.00025,30]
[339054714,1727183439282,-500.0,0.00025,30]
[339054715,1727183439292,-500.0,0.00025,30]
[339054716,1727183439302,-500.0,0.00025,30]
[339054717,1727183439311,-500.0,0.00025,30]
[339054718,1727183439321,-500.0,0.00025,30]
[339054719,1727183439331,-500.0,0.00025,30]
[339054720,1727183439340,-500.0,0.00025,30]
[339054721,1727183439349,-500.0,0.00025,30]
[339054722,1727183439359,-500.0,0.00025,30]
[339054723,1727183439369,-499.3,0.00025,30]
[339054724,1727183439379,-154.74467129,0.00025,30]
[339054725,1727183439389,-429.06524569,0.00025,30]
[339054726,1727183439398,-500.0,0.00025,30]
[339054727,1727183439408,-408.53832711,0.00025,30]
[339054728,1727183439418,-500.0,0.00025023,2]
[339054729,1727183439428,-500.0,0.00025023,2]
[339054730,1727183439438,-503.93481009,0.00025023,2]
[339054731,1727183439447,-353.23310728,0.00025104,2]
[339054732,1727183439457,-1204.29,0.00025194,3]
[339054733,1727183439466,-1003.58,0.00025194,3]
[339054734,1727183439476,-269.1,0.00025195,3]
[339054735,1727183439487,-572.16749584,0.00025204,2]
[339054736,1727183439497,-395.76985063,0.00025204,2]
[339054737,1727183439507,-492.70465013,0.00025204,2]
[339054738,1727183439517,-500.0,0.00025204,2]
[339054739,1727183439527,-315.7853341,0.00025204,2]
[339054740,1727183439537,-500.0,0.00025204,2]
[339054741,1727183439553,-500.0,0.00025204,2]
[339054742,1727183439564,-194.27042457,0.00025204,2]
[339054743,1727183439574,-500.0,0.00025204,2]
[339054744,1727183439584,-500.0,0.00025204,2]
[339054745,1727183439595,-500.0,0.00025204,2]
[339054746,1727183439605,-500.0,0.00025204,2]
[339054747,1727183439615,-96625.1979482,0.00025205,3]
[339054748,1727183439625,-70339.7576831,0.00025205,3]
[339054749,1727183439635,-1000.0,0.00025215,2]
[339054750,1727183439646,-500.0,0.00025273,2]
[339054751,1727183439655,-303.89639885,0.00025273,2]
[339054752,1727183439666,-500.0,0.00025273,2]
[339054753,1727183439675,-500.0,0.00025273,2]
[339054754,1727183439685,-411.26763282,0.00025708,2]
[339054755,1727183439694,-500.0,0.00025708,2]
[339054756,1727183439705,-611.55817384,0.00025821,2]
[339054757,1727183439714,-1000.0,0.00025821,2]
[339054758,1727183439724,-500.0,0.00025838,2]
[339054759,1727183439735,-546.25122095,0.00026033,2]
[339054760,1727183439746,-296.38757922,0.00026033,2]
[339054761,1727183439756,-500.0,0.00026136,2]
[339054762,1727183439765,-500.0,0.00026136,2]
[339054763,1727183439775,-1000.0,0.00026256,2]
[339054764,1727183439784,-353.23310725,0.00026276,2]
[339054765,1727183439794,-876.33839844,0.00026386,2]
[339054766,1727183439804,-1500.0,0.00026531,2]
[339054767,1727183439814,-269.8099714,0.00026649,2]
[339054768,1727183439824,-883.04284307,0.00026684,2]
[339054769,1727183439833,-500.31559626,0.00026684,2]
[339054770,1727183439843,-1037.17947911,0.00026967,2]
[339054771,1727183439852,-10884.54,0.00027,14]
[339054772,1727183439862,-4910.04,0.00027,14]
[339054773,1727183439872,-2919.41,0.00027,14]
[339054774,1727183439881,-184.75,0.00027,7]
[339054775,1727183439891,-2000.0,0.0002732,2]
[339054776,1727183439900,-400.0,0.00027397,60]
[339054777,1727183439909,-269.938715,0.00027397,2]
[339054778,1727183439919,-353.23310725,0.00027447,2]
[339054779,1727183439928,-420.0,0.00027498,2]
[339054780,1727183439938,-150.112233,0.000281,9]
[339054781,1727183439948,-2500.0,0.00028165,3]
[339054782,1727183439957,-500.0,0.00028219,14]
[339054783,1727183439967,-500.0,0.00028219,14]
[339054785,1727183439976,-6238.75692124,0.00028249,2]
[339054787,1727183439987,-22948.43805414,0.00028358,9]
[339054789,1727183439997,-25456.25848178,0.00028358,9]
[339054790,1727183440007,-96625.1979482,0.00028358,4]
[339054791,1727183440017,-70339.7576831,0.00028358,4]
[339054792,1727183440026,-151.0,0.00028359,7]
[339054793,1727183440036,-500.0,0.00028373,5]
[339054794,1727183440045,-500.0,0.00028373,5]
[339054795,1727183440056,-500.0,0.00028373,5]
[339054796,1727183440066,-606.96312189,0.00028373,5]
[339054797,1727183440076,-150.112233,0.000285,5]
[339054798,1727183440085,-153.0,0.00028575,2]
[339054799,1727183440095,-153.0,0.00028575,2]
[339054800,1727183440104,-153.0,0.00028575,2]
[339054801,1727183440113,-353.23310725,0.00028619,2]
[339054802,1727183440123,-6238.75692124,0.00028684,2]
[339054803,1727183440133,-470.2,0.00028733,4]
[339054804,1727183440142,-330.0,0.000289,120]
[339054805,1727183440151,-1941.885253,0.000289,3]
[339054806,1727183440161,-1037.25205191,0.00028921,5]
[339054807,1727183440169,-373.06051716,0.00028921,5]
[339054808,1727183440179,-300.35288752,0.00028921,5]
[339054809,1727183440188,-177.47,0.00028927,21]
[339054810,1727183440197,-6238.75692124,0.0002894,2]
[339054811,1727183440207,-150.112233,0.00029,5]
[339054812,1727183440217,-3000.0,0.00029053,3]
[339054813,1727183440226,-330.0,0.000291,120]
[339054814,1727183440235,-10884.54,0.000291,14]
[339054815,1727183440246,-4910.04,0.000291,14]
[339054816,1727183440255,-2919.41,0.000291,14]
[339054817,1727183440265,-184.75,0.000291,7]
[339054818,1727183440274,-158.13288428,0.000291,7]
[339054819,1727183440284,-151.0,0.000291,7]
[339054820,1727183440293,-6238.75692124,0.00029179,2]
[339054821,1727183440302,-330.0,0.000293,120]
[339054822,1727183440312,-151.0,0.00029371,7]
[339054823,1727183440321,-259.557057,0.00029371,2]
[339054824,1727183440331,-462.472312,0.00029371,7]
[339054825,1727183440340,-462.472312,0.00029371,7]
[339054826,1727183440359,-442.072804,0.00029371,7]
[339054827,1727183440371,-442.072804,0.00029371,7]
[339054828,1727183440381,-153.0,0.00029397,2]
[339054829,1727183440391,-150.112233,0.000294,5]
[339054830,1727183440401,-1000.0,0.000294,3]
[339054831,1727183440411,-470.2,0.00029416,4]
[339054832,1727183440420,-150.0,0.00029416,2]
[339054833,1727183440430,-1787.53919958,0.00029419,2]
[339054834,1727183440440,-6238.75692124,0.00029487,2]
[339054835,1727183440450,-330.0,0.000295,120]
[339054836,1727183440459,-150.112233,0.000295,10]
[339054837,1727183440470,-538.2,0.00029519,2]
[339054838,1727183440479,-538.2,0.00029519,2]
[339054839,1727183440490,-538.2,0.00029519,2]
[339054840,1727183440500,-538.2,0.00029519,2]
[339054841,1727183440510,-538.2,0.00029519,2]
[339054842,1727183440520,-538.2,0.00029519,2]
[339054843,1727183440531,-538.2,0.00029519,2]
[339054844,1727183440541,-538.2,0.00029519,2]
[339054845,1727183440552,-538.2,0.00029519,2]
[339054846,1727183440562,-538.2,0.00029519,2]
[339054847,1727183440572,-151.0,0.00029519,7]
[339054848,1727183440582,-96625.1979482,0.0002952,4]
[339054849,1727183440593,-70339.7576831,0.0002952,4]
[339054850,1727183440740,-153.0,0.00029534,2]
[339054851,1727183440749,-153.0,0.00029534,2]
[339054852,1727183440759,-166.3950261,0.00029534,2]
[339054853,1727183440768,-153.0,0.00029534,2]
[339054854,1727183440778,-153.0,0.00029534,2]
[339054855,1727183440787,-153.0,0.00029534,2]
[339054856,1727183440797,-153.0,0.00029534,2]
[339054857,1727183440807,-153.0,0.00029534,2]
[339054858,1727183440816,-153.0,0.00029534,2]
[339054859,1727183440825,-153.0,0.00029534,2]
[339054860,1727183440835,-153.0,0.00029534,2]
[339054861,1727183440845,-153.0,0.00029534,2]
[339054862,1727183440854,-153.0,0.00029534,2]
[339054863,1727183440863,-153.0,0.00029534,2]
[339054864,1727183440872,-153.0,0.00029534,2]
[339054865,1727183440881,-150.112233,0.000296,10]
[339054866,1727183440890,-330.0,0.000297,120]
[339054867,1727183440899,-150.112233,0.000297,6]
[339054868,1727183440908,-553.122278,0.00029708,7]
[339054869,1727183440917,-553.122278,0.00029708,7]
[339054870,1727183440927,-151.0,0.00029708,7]
[339054871,1727183440937,-151.0,0.00029708,7]
[339054872,1727183440946,-151.0,0.00029708,7]
[339054873,1727183440955,-631.190564,0.00029708,7]
[339054874,1727183440965,-631.190564,0.00029708,7]
[339054875,1727183440974,-466.91109,0.00029708,7]
[339054876,1727183440983,-466.91109,0.00029708,7]
[339054877,1727183440994,-151.0,0.00029708,7]
[339054878,1727183441003,-281.911707,0.00029708,7]
[339054879,1727183441017,-281.911707,0.00029708,7]
[339054880,1727183441027,-2496.237133,0.00029708,7]
[339054881,1727183441038,-2496.237133,0.00029708,7]
[339054882,1727183441048,-151.0,0.00029708,7]
[339054883,1727183441058,-168.0,0.0002972,21]
[339054884,1727183441068,-402.221516,0.00029736,7]
[339054885,1727183441078,-402.221516,0.00029736,7]
[339054886,1727183441088,-151.0,0.00029736,7]
[339054887,1727183441097,-151.0,0.00029736,7]
[339054888,1727183441107,-151.0,0.00029736,7]
[339054889,1727183441118,-151.0,0.00029736,7]
[339054890,1727183441127,-953.357891,0.00029736,7]
[339054891,1727183441138,-670.040962,0.00029736,7]
[339054892,1727183441148,-953.357891,0.00029736,7]
[339054893,1727183441158,-151.0,0.00029736,7]
[339054894,1727183441168,-670.040962,0.00029736,7]
[339054895,1727183441178,-202.941271,0.00029736,7]
[339054896,1727183441187,-202.941271,0.00029736,7]
[339054897,1727183441198,-353.23310725,0.0002979,2]
[339054898,1727183441208,-150.67504188,0.00029812,2]
[339054899,1727183441218,-153.0,0.00029823,2]
[339054900,1727183441229,-6238.75692124,0.00029825,2]
[339054901,1727183441246,-166.01358934,0.0002986,7]
[339054902,1727183441256,-166.01358934,0.0002986,7]
[339054903,1727183441266,-306.0000002,0.00029863,2]
[339054904,1727183441278,-6238.7569213,0.00029867,2]
[339054905,1727183441288,-150.0,0.00029873,5]
[339054906,1727183441299,-151.0,0.0002988,7]
[339054907,1727183441309,-151.0,0.0002988,7]
[339054908,1727183441319,-151.0,0.0002988,7]
[339054909,1727183441329,-157.219054,0.0002988,7]
[339054910,1727183441340,-151.0,0.0002988,7]
[339054911,1727183441351,-155.25961,0.0002988,7]
[339054912,1727183441361,-342.587468,0.0002988,7]
[339054913,1727183441371,-342.587468,0.0002988,7]
[339054914,1727183441381,-96625.1979482,0.0002989,4]
[339054915,1727183441390,-70339.7576831,0.0002989,4]
[339054916,1727183441401,-151.0,0.0002989,7]
[339054917,1727183441411,-2000.40042874,0.0002989,2]
[339054918,1727183441421,-330.0,0.000299,120]
[339054919,1727183441431,-151.0,0.000299,7]
[339054920,1727183441441,-151.0,0.000299,7]
[339054921,1727183441450,-151.0,0.000299,7]
[339054922,1727183441460,-151.0,0.000299,7]
[339054923,1727183441469,-525.278445,0.000299,7]
[339054924,1727183441479,-525.278445,0.000299,7]
[339054925,1727183441494,-2032.49706,0.000299,7]
[339054926,1727183441503,-2032.49706,0.000299,7]
[339054927,1727183441513,-151.0,0.000299,7]
[339054928,1727183441523,-151.0,0.000299,7]
[339054929,1727183441532,-151.0,0.000299,7]
[339054930,1727183441543,-151.0,0.000299,7]
[339054931,1727183441566,-151.0,0.000299,7]
[339054932,1727183441586,-685.358578,0.000299,7]
[339054933,1727183441601,-685.358578,0.000299,7]
[339054934,1727183441617,-151.0,0.000299,7]
[339054935,1727183441637,-153.13756,0.000299,7]
[339054936,1727183441654,-151.0,0.000299,2]
[339054937,1727183441671,-151.0,0.000299,7]
[339054938,1727183441687,-151.0,0.000299,7]
[339054939,1727183441704,-1000.0,0.000299,3]
[339054940,1727183441719,-320.322419,0.000299,7]
[339054941,1727183441732,-320.322419,0.000299,7]
[339054942,1727183441751,-1324.981657,0.000299,7]
[339054943,1727183441766,-1324.981657,0.000299,7]
[339054944,1727183441783,-330.093478,0.000299,7]
[339054945,1727183441802,-330.093478,0.000299,7]
[339054946,1727183441817,-151.0,0.000299,7]
[339054947,1727183441830,-151.0,0.000299,7]